fUSD/lending_fUSD_20250923
["ID","MTS","AMOUNT","RATE_DAILY","PERIOD"]
[387181928,1758615038587,-500.0,0.00022171,7]
[387181929,1758615038597,-500.0,0.00022171,7]
[387181930,1758615038608,-500.0,0.00022171,7]
[387181931,1758615038618,-500.0,0.00022171,7]
[387181932,1758615038629,-500.0,0.00022171,7]
[387181933,1758615038639,-500.0,0.00022171,7]
[387181934,1758615038648,-500.0,0.00022171,7]
[387181935,1758615038657,-500.0,0.00022171,7]
[387181943,1758615038927,-500.0,0.00022171,7]
[387181944,1758615038939,-516.64379166,0.00022192,7]
[387181945,1758615038950,-416.0,0.00022192,7]
[387181946,1758615038960,-170.0,0.00022192,7]
[387181947,1758615038971,-1000.0,0.00022204,2]
[387181948,1758615038981,-212.29751695,0.00022217,2]
[387181949,1758615038993,-548.47638316,0.00022217,2]
[387181950,1758615039006,-2124.08502473,0.00022217,2]
[387181964,1758615040373,-4231.0,0.00020177,2]
[387181965,1758615040384,-2312.56462741,0.00022217,2]
[387181966,1758615040395,-168.0,0.00022293,2]
[387181967,1758615040405,-200.6982094,0.00022399,2]
[387181968,1758615040415,-500.0,0.000224,2]
[387181969,1758615040425,-851.28127352,0.00022475,2]
[387181970,1758615040440,-1050.3275224,0.000225,2]
[387181971,1758615040450,-334.5472959,0.000225,2]
[387181972,1758615040459,-1000.0,0.00022541,2]
[387181973,1758615040469,-617.62203528,0.00022586,2]
[387181974,1758615040479,-600.0,0.00022658,2]
[387181975,1758615040489,-1000.0,0.00022672,2]
[387181976,1758615040499,-192.34665349,0.00022725,2]
[387181977,1758615040509,-1500.0,0.00022751,2]
[387181978,1758615040519,-217.63,0.00022834,2]
[387181979,1758615040529,-173.36,0.00022856,2]
[387181980,1758615040538,-1000.0,0.00022861,2]
[387181981,1758615040548,-196.5,0.00022868,2]
[387181982,1758615040559,-617.62203528,0.00022887,2]
[387181983,1758615040570,-646.322,0.00022899,2]
[387181984,1758615040581,-500.0,0.000229,2]
[387181985,1758615040591,-168.0,0.00022904,2]
[387181986,1758615040603,-1425.0,0.00022916,2]
[387181987,1758615040613,-1447.40856089,0.00022929,2]
[387181988,1758615040623,-168.0,0.00022965,2]
[387181989,1758615040632,-701.2217883,0.00023,2]
[387181990,1758615040642,-152.0,0.00023,3]
[387181991,1758615040654,-152.0,0.00023,3]
[387181992,1758615040663,-153.0,0.00023,3]
[387181993,1758615040673,-154.34,0.00023,3]
[387181994,1758615040687,-179.0,0.00023,2]
[387181995,1758615040697,-1000.0,0.00023013,10]
[387181996,1758615040707,-1000.0,0.00023013,10]
[387181997,1758615040718,-1000.0,0.00023013,10]
[387181998,1758615040728,-1000.0,0.00023013,10]
[387181999,1758615040738,-1000.0,0.00023013,10]
[387182000,1758615040747,-243.33435968,0.00023013,10]
[387182001,1758615040758,-416.0,0.00023014,7]
[387182002,1758615040768,-170.0,0.00023014,7]
[387182003,1758615040777,-150.0,0.00023014,2]
[387182004,1758615040787,-150.0,0.00023014,2]
[387182005,1758615040797,-150.0,0.00023014,2]
[387182006,1758615040807,-200.0,0.00023014,2]
[387182007,1758615040817,-150.0,0.00023014,2]
[387182009,1758615040826,-500.0,0.00023014,2]
[387182011,1758615040836,-500.0,0.00023014,2]
[387182013,1758615040846,-983.0,0.00023014,2]
[387182015,1758615040855,-500.0,0.00023014,2]
[387182018,1758615040865,-414.71407103,0.00023014,2]
[387182019,1758615040875,-150.0,0.00023014,2]
[387182021,1758615040884,-1425.0,0.00023073,2]
[387182024,1758615040894,-1425.0,0.00023075,2]
[387182026,1758615040904,-8817.49214047,0.00023077,2]
[387182028,1758615040914,-185.0,0.00023086,2]
[387182029,1758615040923,-1000.0,0.00023091,2]
[387182032,1758615040937,-1000.0,0.00023104,2]
[387182034,1758615040947,-1000.0,0.00023106,2]
[387182036,1758615040957,-2969.85275322,0.0002312,2]
[387182038,1758615040967,-159.68349084,0.0002312,2]
[387182040,1758615040977,-644.35798936,0.0002312,2]
[387182042,1758615040986,-799.45512878,0.0002312,2]
[387182044,1758615040996,-194.20056404,0.0002312,2]
[387182046,1758615041006,-65275.71108268,0.00023171,2]
[387182048,1758615041016,-9803.40364161,0.00023171,2]
[387182050,1758615041026,-180.13492198,0.00023171,2]
[387182051,1758615041036,-150.98358,0.00023171,2]
[387182052,1758615041045,-1312.53071126,0.00023172,2]
[387182053,1758615041055,-222.09044612,0.00023173,2]
[387182054,1758615041066,-59955.95965682,0.00023176,2]
[387182055,1758615041078,-9803.40364161,0.00023176,2]
[387182056,1758615041088,-602.0,0.00023177,2]
[387182057,1758615041098,-814.0,0.00023177,2]
[387182058,1758615041109,-6118.553,0.00023177,2]
[387182059,1758615041119,-727.0,0.00023177,2]
[387182060,1758615041128,-4177.0,0.00023177,2]
[387182061,1758615041138,-4231.0,0.00023177,2]
[387182062,1758615041150,-222.09044612,0.00023178,2]
[387182063,1758615041161,-193.3780338,0.00023178,2]
[387182064,1758615041171,-35230.75324912,0.00023179,2]
[387182065,1758615041186,-49073.12508959,0.00023179,2]
[387182066,1758615041206,-19904.3866,0.00023179,2]
[387182067,1758615041226,-1532.443498,0.00023179,2]
[387182126,1758615044377,-0.0205358,0.00023179,2]
[387182157,1758615044660,-366.86953673,0.00021099,2]
[387182159,1758615044670,-2798.20317927,0.00023179,2]
[387182275,1758615046633,-343.14707635,0.00019976,2]
[387182276,1758615046644,-87.50733701,0.00019976,2]
[387182290,1758615427652,153.03,0.00010809,2]
[387182319,1758615533884,208.57702687,0.00018541,2]
[387182321,1758615670886,187.01,0.00024892,120]
[387182322,1758615671460,187.01,0.00028448,120]
[387182325,1758615830183,-1052.53,0.00021971,30]
[387182326,1758615910558,11553.39601854,0.000154,2]
[387182330,1758615964212,2484.97670044,8e-05,2]
[387182335,1758616059014,59633.67424885,0.000185,2]
[387182363,1758616124141,810.76032373,0.00018569,2]
[387182372,1758616199967,47.47,0.00021945,30]
[387182379,1758616231610,-400.0,0.00019772,2]
[387182380,1758616231621,-200.0,0.00019861,2]
[387182381,1758616231630,-407.8816,0.00019877,2]
[387182382,1758616231640,-300.0,0.0001996,2]
[387182383,1758616231650,-1200.0,0.0001996,2]
[387182384,1758616231660,-355.0,0.0001996,2]
[387182385,1758616231669,-500.0,0.00019961,2]
[387182386,1758616231679,-197.92478591,0.00019961,2]
[387182387,1758616231688,-500.0,0.00019961,2]
[387182388,1758616231698,-641.75639103,0.00019961,2]
[387182389,1758616231709,-500.0,0.00019961,2]
[387182390,1758616231719,-500.0,0.00019961,2]
[387182391,1758616231729,-500.0,0.00019961,2]
[387182392,1758616231739,-500.0,0.00019961,2]
[387182393,1758616231749,-500.0,0.00019961,2]
[387182394,1758616231758,-500.0,0.00019961,2]
[387182395,1758616231768,-368.03333845,0.00019961,2]
[387182396,1758616231795,-131.96666155,0.00019961,2]
[387182397,1758616231804,-500.0,0.00019961,2]
[387182398,1758616231814,-500.0,0.00019961,2]
[387182399,1758616231824,-438.50563497,0.00019961,2]
[387182400,1758616231835,-61.49436503,0.00019961,2]
[387182401,1758616231845,-176.14335954,0.00019961,2]
[387182402,1758616231855,-75.2706906,0.00019961,2]
[387182403,1758616231871,-424.7293094,0.00019961,2]
[387182404,1758616231880,-100.63243138,0.00020737,2]
[387182405,1758616231896,-416.01136028,0.00020737,2]
[387182406,1758616231907,-444.20197652,0.00020986,2]
[387182407,1758616231916,-500.0,0.00020986,2]
[387182408,1758616231926,-586.68874977,0.000211,2]
[387182409,1758616231938,-1979.81125023,0.000211,2]
[387182410,1758616231948,-500.0,0.000211,2]
[387182411,1758616231958,-257.91778498,0.00021196,2]
[387182412,1758616231968,-1857.29694098,0.00021258,2]
[387182414,1758616231981,-1077.16687142,0.00021258,2]
[387182422,1758616232051,-299.0761876,0.00021258,2]
[387182424,1758616232061,-180.69552882,0.00021269,2]
[387182427,1758616232071,-200.0,0.00021277,2]
[387182428,1758616232082,-1000.0,0.00021294,2]
[387182430,1758616232092,-291.11,0.00021303,2]
[387182432,1758616232102,-164.47,0.00021314,2]
[387182434,1758616232113,-200.0,0.00021316,2]
[387182436,1758616232123,-187.01,0.00021336,2]
[387182439,1758616232133,-151.0,0.00021423,2]
[387182441,1758616232143,-151.0,0.00021423,2]
[387182443,1758616232153,-151.0,0.00021423,2]
[387182445,1758616232162,-151.0,0.00021423,2]
[387182447,1758616232172,-322.6107,0.00021423,2]
[387182449,1758616232181,-1200.0,0.00021424,2]
[387182451,1758616232191,-569.0,0.00021436,2]
[387182453,1758616232209,-1582.0,0.00021436,2]
[387182455,1758616232221,-602.0,0.00021436,2]
[387182458,1758616232230,-1305.0,0.00021436,2]
[387182461,1758616232240,-814.0,0.00021436,2]
[387182464,1758616232250,-899.0,0.00021436,2]
[387182467,1758616232260,-4231.0,0.00021436,2]
[387182470,1758616232270,-1179.0,0.00021436,2]
[387182473,1758616232281,-2042.0,0.00021436,2]
[387182476,1758616232291,-4177.0,0.00021436,2]
[387182479,1758616232301,-1000.0,0.00021479,2]
[387182483,1758616232311,-206.7,0.00021513,2]
[387182486,1758616232321,-194.76476869,0.00021531,2]
[387182489,1758616232330,-368.20467521,0.00021531,2]
[387182491,1758616232339,-502.41953048,0.00021534,2]
[387182494,1758616232349,-500.0,0.000216,2]
[387182496,1758616232359,-153.03,0.00021618,2]
[387182498,1758616232369,-444.93,0.00021655,2]
[387182500,1758616232378,-500.0,0.00021749,2]
[387182502,1758616232388,-310.0,0.00021749,2]
[387182504,1758616232397,-250.0,0.00021749,2]
[387182506,1758616232407,-250.0,0.00021749,2]
[387182508,1758616232417,-1680.0,0.0002184,2]
[387182510,1758616232426,-1460.2118047,0.00021842,2]
[387182514,1758616232437,-250.0,0.00021853,2]
[387182517,1758616232448,-5000.0,0.00021918,2]
[387182518,1758616232458,-939.4639202,0.00021945,30]
[387182521,1758616232471,-214.4460798,0.00021945,30]
[387182524,1758616232482,-170.0,0.00022,2]
[387182527,1758616232491,-324.0,0.00022,2]
[387182529,1758616232501,-3914.37,0.00022,2]
[387182530,1758616232511,-552.64,0.00022,2]
[387182531,1758616232521,-1000.0,0.00022093,2]
[387182532,1758616232534,-500.0,0.000221,2]
[387182533,1758616232544,-600.0,0.0002211,2]
[387182534,1758616232554,-171.41,0.00022118,2]
[387182535,1758616232564,-324.0,0.00022192,7]
[387182536,1758616232573,-291.11,0.00022368,2]
[387182537,1758616232583,-500.0,0.000226,2]
[387182538,1758616232593,-600.0,0.00022658,2]
[387182539,1758616232603,-334.5472959,0.00022792,2]
[387182540,1758616232612,-150.0,0.00022882,4]
[387182541,1758616232622,-150.0,0.00022882,4]
[387182542,1758616232631,-150.0,0.00022882,4]
[387182543,1758616232641,-188.46535256,0.00022882,4]
[387182544,1758616232650,-150.0,0.00022882,4]
[387182545,1758616232663,-178.00298222,0.00022882,4]
[387182546,1758616232673,-150.0,0.00022882,4]
[387182547,1758616232682,-177.33140807,0.00022882,4]
[387182548,1758616232692,-150.0,0.00022882,4]
[387182549,1758616232702,-150.0,0.00022882,4]
[387182550,1758616232712,-150.0,0.00022882,4]
[387182551,1758616232722,-152.65369376,0.00022882,4]
[387182552,1758616232732,-1000.0,0.00022891,2]
[387182553,1758616232742,-191.0,0.000229,2]
[387182554,1758616232752,-532.07528659,0.00022959,2]
[387182555,1758616232762,-38195.40086582,0.00023,2]
[387182556,1758616232772,-259.0,0.00023,3]
[387182557,1758616232784,-170.0,0.00023014,7]
[387182558,1758616232794,-324.0,0.00023014,7]
[387182559,1758616232804,-184.50226902,0.00023014,2]
[387182560,1758616232814,-709.719,0.00023014,2]
[387182561,1758616232825,-500.0,0.00023014,2]
[387182562,1758616232835,-942.0,0.00023014,2]
[387182563,1758616232844,-200.0,0.00023014,2]
[387182564,1758616232855,-200.0,0.00023014,2]
[387182565,1758616232865,-200.0,0.00023014,2]
[387182566,1758616232875,-500.0,0.00023014,2]
[387182567,1758616232885,-150.0,0.00023014,2]
[387182568,1758616232895,-200.0,0.00023014,2]
[387182569,1758616232905,-150.0,0.00023014,2]
[387182570,1758616232914,-500.0,0.00023014,2]
[387182571,1758616232925,-150.0,0.00023014,2]
[387182572,1758616232935,-500.0,0.00023014,2]
[387182573,1758616232945,-150.0,0.00023014,2]
[387182574,1758616232955,-500.0,0.000231,2]
[387182575,1758616232964,-1425.0,0.00023113,2]
[387182576,1758616232973,-577.342,0.0002312,2]
[387182577,1758616232983,-708.58710504,0.0002312,2]
[387182578,1758616232993,-9399.9199906,0.0002312,2]
[387182579,1758616233003,-159.68349084,0.0002312,2]
[387182580,1758616233012,-169.9254935,0.0002312,2]
[387182581,1758616233022,-197.95821899,0.0002312,2]
[387182582,1758616233033,-629.7,0.0002314,2]
[387182583,1758616233043,-314.17721419,0.00023144,2]
[387182584,1758616233053,-3585.7288037,0.00023161,2]
[387182585,1758616233062,-264.51685533,0.00023161,2]
[387182586,1758616233076,-785.8844648,0.00023161,2]
[387182587,1758616233100,-2490.3457402,0.00023161,2]
[387182588,1758616233116,-271.90793651,0.00023161,2]
[387182589,1758616233130,-3702.33451346,0.00023161,2]
[387182590,1758616233140,-150.0,0.00023165,4]
[387182591,1758616233151,-150.0,0.00023173,2]
[387182592,1758616233161,-3816.92358632,0.00023179,2]
[387182593,1758616233175,-1914.75277448,0.00023179,2]
[387182594,1758616233188,-624.6388998,0.00023179,2]
[387182595,1758616233200,-5473.10369512,0.00023179,2]
[387182596,1758616233212,-1366.73865052,0.00023179,2]
[387182605,1758616237416,-3394.0,0.00021436,2]
[387182607,1758616237427,-221647.76650303,0.00023179,2]
[387182609,1758616237436,-200.0,0.00023179,2]
[387182611,1758616237446,-150.9835803,0.00023179,2]
[387182612,1758616237459,-222.09044612,0.0002318,2]
[387182613,1758616237469,-193.3780338,0.0002318,2]
[387182614,1758616237478,-2108.57634721,0.00023183,2]
[387182615,1758616237576,-1158.7614,0.00023183,2]
[387182616,1758616237632,-571.34611784,0.00023183,2]
[387182617,1758616237846,-56117.27579177,0.00023183,2]
[387182619,1758616237856,-180.13492198,0.00023184,2]
[387182621,1758616237865,-150.71211728,0.00023184,2]
[387182623,1758616237874,-1312.53071126,0.00023185,2]
[387182625,1758616237883,-180.13492198,0.00023188,2]
[387182627,1758616237893,-393.48485353,0.00023188,2]
[387182629,1758616237902,-1245.23727776,0.00023189,2]
[387182631,1758616237912,-393.48485353,0.0002319,2]
[387182633,1758616237921,-393.48485353,0.0002319,2]
[387182635,1758616237931,-1361.03480829,0.0002319,2]
[387182637,1758616237941,-1594.69867791,0.00023191,2]
[387182639,1758616237950,-753.55477123,0.00023193,2]
[387182641,1758616237959,-185.1211535,0.00023195,2]
[387182643,1758616237968,-193.3780338,0.00023195,2]
[387182645,1758616237977,-150.58926479,0.00023195,2]
[387182646,1758616237986,-183.22492003,0.00023197,2]
[387182647,1758616237996,-150.71211728,0.00023198,2]
[387182649,1758616238005,-600.0,0.00023206,2]
[387182650,1758616238014,-204.79871735,0.0002321,2]
[387182652,1758616238024,-152.39,0.0002321,2]
[387182654,1758616238033,-152.39,0.0002321,2]
[387182656,1758616238043,-151.0,0.00023216,7]
[387182658,1758616238052,-1041.0,0.00023219,2]
[387182660,1758616238062,-1000.0,0.00023219,2]
[387182663,1758616238072,-1000.0,0.00023219,2]
[387182665,1758616238081,-1000.0,0.00023219,2]
[387182667,1758616238091,-1000.0,0.00023219,2]
[387182669,1758616238100,-308.28775136,0.00023219,2]
[387182671,1758616238110,-308.73191367,0.00023219,2]
[387182673,1758616238120,-666.0,0.00023219,2]
[387182675,1758616238129,-300.0,0.00023219,2]
[387182677,1758616238139,-300.0,0.00023219,2]
[387182679,1758616238149,-1706.41,0.00023219,2]
[387182681,1758616238159,-1706.41,0.00023219,2]
[387182683,1758616238169,-1706.41,0.00023219,2]
[387182684,1758616238179,-1706.41,0.00023219,2]
[387182685,1758616238189,-1706.41,0.00023219,2]
[387182686,1758616238198,-1706.41,0.00023219,2]
[387182687,1758616238209,-1706.41,0.00023219,2]
[387182688,1758616238219,-1706.41,0.00023219,2]
[387182689,1758616238229,-1706.41,0.00023219,2]
[387182690,1758616238239,-1706.41,0.00023219,2]
[387182691,1758616238249,-1706.41,0.00023219,2]
[387182692,1758616238258,-1706.41,0.00023219,2]
[387182694,1758616238269,-1706.41,0.00023219,2]
[387182696,1758616238280,-1706.41,0.00023219,2]
[387182697,1758616238290,-1706.41,0.00023219,2]
[387182698,1758616238300,-1706.41,0.00023219,2]
[387182699,1758616238309,-1706.41,0.00023219,2]
[387182700,1758616238319,-1706.41,0.00023219,2]
[387182701,1758616238328,-1706.41,0.00023219,2]
[387182702,1758616238338,-1706.41,0.00023219,2]
[387182703,1758616238347,-1706.41,0.00023219,2]
[387182704,1758616238358,-1706.41,0.00023219,2]
[387182705,1758616238367,-1706.41,0.00023219,2]
[387182706,1758616238376,-1706.63279877,0.00023219,2]
[387182707,1758616238385,-550.70018181,0.00023219,2]
[387182708,1758616238394,-300.0,0.00023219,2]
[387182709,1758616238404,-185.78869768,0.00023219,2]
[387182710,1758616238413,-205998.25455019,0.0002322,2]
[387182711,1758616238426,-137276.24152778,0.0002322,2]
[387182712,1758616239437,-6819.06787911,0.0002322,2]
[387182713,1758616239493,-1939.82621116,0.0002322,2]
[387182714,1758616239549,-2499.30818244,0.0002322,2]
[387182976,1758616242742,-0.01972592,0.0002322,2]
[387182977,1758616242784,-4634.00000002,0.0002322,2]
[387182994,1758616243376,-727.0,0.00021436,2]
[387182995,1758616243387,-200.76,0.0002322,2]
[387182996,1758616243550,-4441.53009637,0.0002322,2]
[387183000,1758616245474,-14174.424016,0.0002322,2]
[387183001,1758616245487,-292997.09673448,0.0002322,2]
[387183002,1758616245639,-15685.37851243,0.0002322,2]
[387183009,1758616246070,-7895.19197335,0.0002322,2]
[387183012,1758616246083,-63275.0000002,0.0002322,2]
[387183022,1758616308099,504.0,0.0001956,90]
[387183039,1758616904340,4000.0,0.00030137,120]
[387183040,1758616927884,3199.17,0.00030137,120]
[387183042,1758617431782,-500.0,0.00021199,2]
[387183043,1758617431792,-50.18125656,0.00021199,2]
[387183044,1758617431854,-136.0568945,0.00021199,2]
[387183045,1758617431864,-378.35550549,0.000212,2]
[387183046,1758617431908,-641.39159057,0.000212,2]
[387183047,1758617431919,-692.31295391,0.000212,2]
[387183048,1758617431966,-456.67068403,0.000212,2]
[387183049,1758617431975,-500.0,0.000213,2]
[387183050,1758617431985,-516.64379166,0.00021428,2]
[387183051,1758617431994,-1200.0,0.00021434,2]
[387183052,1758617432004,-150.19,0.00021435,2]
[387183053,1758617432013,-245.4,0.00021457,2]
[387183054,1758617432023,-300.0,0.00021493,2]
[387183055,1758617432032,-1000.0,0.00021494,2]
[387183056,1758617432041,-200.0,0.00021565,2]
[387183057,1758617432051,-786.0,0.00021648,2]
[387183058,1758617432060,-2042.0,0.00021648,2]
[387183059,1758617432070,-1305.0,0.00021648,2]
[387183060,1758617432079,-602.0,0.00021648,2]
[387183061,1758617432089,-569.0,0.00021648,2]
[387183062,1758617432098,-1582.0,0.00021648,2]
[387183063,1758617432108,-814.0,0.00021648,2]
[387183064,1758617432118,-4177.0,0.00021648,2]
[387183066,1758617432127,-469.14,0.00021648,2]
[387183068,1758617432137,-2309.85,0.000217,2]
[387183069,1758617432146,-335.72047228,0.00021756,2]
[387183071,1758617432156,-155.75086179,0.00021756,2]
[387183073,1758617432165,-19983.33,0.00021757,2]
[387183075,1758617432175,-9388.73,0.00021757,2]
[387183077,1758617432185,-500.0,0.000218,2]
[387183079,1758617432194,-250.0,0.0002191,2]
[387183081,1758617432204,-5000.0,0.00021918,2]
[387183083,1758617432214,-5025.11797633,0.00021939,2]
[387183085,1758617432223,-1101.26,0.00021945,30]
[387183087,1758617432233,-234.75,0.00021954,2]
[387183089,1758617432242,-198.14721258,0.00022,2]
[387183091,1758617432251,-203.0,0.00022,2]
[387183093,1758617432260,-3479.44,0.00022,2]
[387183095,1758617432270,-491.24,0.00022,2]
[387183097,1758617432279,-222.46,0.00022057,2]
[387183099,1758617432288,-299.35014688,0.00022084,2]
[387183101,1758617432297,-203.0,0.00022192,7]
[387183103,1758617432307,-1000.0,0.000223,2]
[387183105,1758617432317,-500.0,0.000223,2]
[387183107,1758617432327,-245.4,0.0002253,2]
[387183109,1758617432336,-322.6107,0.00022549,2]
[387183111,1758617432346,-600.0,0.00022549,2]
[387183113,1758617432355,-168.0,0.00022656,2]
[387183115,1758617432365,-500.0,0.000228,2]
[387183117,1758617432374,-150.0,0.00022882,4]
[387183119,1758617432384,-150.0,0.00022882,4]
[387183121,1758617432394,-286.39081286,0.00022882,4]
[387183123,1758617432403,-150.0,0.00022882,4]
[387183125,1758617432412,-150.0,0.00022882,4]
[387183127,1758617432422,-150.0,0.00022882,4]
[387183129,1758617432431,-1575.52797771,0.0002299,2]
[387183131,1758617432440,-203.0,0.00023014,7]
[387183132,1758617432449,-850.53,0.00023056,2]
[387183133,1758617432460,-168.0,0.00023086,2]
[387183134,1758617432470,-600.0,0.00023097,2]
[387183135,1758617432479,-1000.0,0.00023106,2]
[387183136,1758617432489,-10759.13834511,0.0002312,2]
[387183137,1758617432499,-169.92549347,0.0002312,2]
[387183138,1758617432508,-165.07266203,0.0002312,2]
[387183139,1758617432519,-584.85437646,0.00023197,2]
[387183140,1758617432528,-200.0,0.000232,2]
[387183141,1758617432538,-150.0,0.000232,2]
[387183142,1758617432548,-200.0,0.000232,2]
[387183143,1758617432557,-150.0,0.000232,2]
[387183144,1758617432567,-150.0,0.000232,2]
[387183145,1758617432782,-150.0,0.000232,2]
[387183146,1758617432799,-150.52083227,0.000232,2]
[387183147,1758617432809,-150.0,0.000232,2]
[387183148,1758617432818,-150.0,0.000232,2]
[387183149,1758617432827,-150.0,0.000232,2]
[387183150,1758617432837,-500.0,0.000232,2]
[387183151,1758617432847,-202.43901634,0.000232,2]
[387183152,1758617432861,-150.0,0.000232,2]
[387183153,1758617432871,-150.0,0.000232,2]
[387183154,1758617432880,-150.0,0.000232,2]
[387183155,1758617432889,-88.29185675,0.000232,2]
[387183156,1758617433346,-411.70814325,0.000232,2]
[387183157,1758617433356,-15.12621722,0.000232,2]
[387183162,1758617437626,-484.87378278,0.000232,2]
[387183163,1758617437637,-68.33621722,0.000232,2]
[387183164,1758617437734,-81.66378278,0.000232,2]
[387183165,1758617437744,-150.0,0.000232,2]
[387183166,1758617437754,-500.0,0.000232,2]
[387183167,1758617437764,-122.34313385,0.000232,2]
[387183168,1758617437776,-882.65686615,0.000232,2]
[387183169,1758617437786,-150.0,0.000232,2]
[387183170,1758617437795,-150.50339104,0.000232,2]
[387183171,1758617437805,-130.69672148,0.000232,2]
[387183172,1758617437817,-19.30327852,0.000232,2]
[387183173,1758617437826,-500.0,0.000232,2]
[387183174,1758617437836,-150.0,0.000232,2]
[387183175,1758617437845,-150.0,0.000232,2]
[387183176,1758617437855,-150.0,0.000232,2]
[387183177,1758617437865,-150.0,0.000232,2]
[387183178,1758617437874,-150.0,0.000232,2]
[387183179,1758617437883,-978.6071674,0.00023218,2]
[387183180,1758617437894,-1714.64705184,0.00023218,2]
[387183181,1758617437905,-2506.7094199,0.00023218,2]
[387183182,1758617437917,-1073.87974771,0.00023218,2]
[387183183,1758617437930,-1603.38445405,0.00023218,2]
[387183184,1758617437940,-1555.53572091,0.00023218,2]
[387183185,1758617437951,-1018.95383389,0.00023218,2]
[387183187,1758617437960,-1000.0,0.00023219,2]
[387183189,1758617437970,-2165.20234711,0.0002322,2]
[387183192,1758617437986,-50134.19181426,0.0002322,2]
[387183195,1758617438004,-7491.27073547,0.0002322,2]
[387183257,1758617439683,-1217.41862361,0.0002322,2]
[387183258,1758617439791,-298.51436949,0.0002322,2]
[387183259,1758617439803,-280.80583378,0.0002322,2]
[387183260,1758617439845,-14804.79854652,0.0002322,2]
[387183261,1758617439903,-13472.74970602,0.0002322,2]
[387183262,1758617439914,-1602.00602761,0.0002322,2]
[387183270,1758617442731,-4231.0,0.00021648,2]
[387183271,1758617442741,-222.46,0.0002259,2]
[387183272,1758617442750,-39191.28880728,0.0002322,2]
[387183273,1758617442784,-480.0,0.0002322,2]
[387183274,1758617442839,-4325.99470946,0.0002322,2]
[387183275,1758617442998,-2487.91736586,0.0002322,2]
[387183276,1758617443010,-29627.65738049,0.0002322,2]
[387183277,1758617443053,-132420.18373304,0.0002322,2]
[387183278,1758617443062,-206371.52697791,0.0002322,2]
[387183279,1758617443074,-500.0,0.0002322,2]
[387183281,1758617445627,-93373.31364083,0.0002322,2]
[387183282,1758617445636,-1797.07536433,0.0002322,2]
[387183283,1758617445647,-150.0,0.0002322,2]
[387183284,1758617445656,-150.0,0.0002322,2]
[387183285,1758617445666,-150.0,0.0002322,2]
[387183286,1758617445676,-150.0,0.0002322,2]
[387183287,1758617445685,-150.0,0.0002322,2]
[387183288,1758617445695,-150.0,0.0002322,2]
[387183289,1758617445704,-150.0,0.0002322,2]
[387183290,1758617445713,-150.0,0.0002322,2]
[387183291,1758617445723,-150.0,0.0002322,2]
[387183292,1758617445732,-150.0,0.0002322,2]
[387183293,1758617445741,-150.0,0.0002322,2]
[387183294,1758617445750,-150.0,0.0002322,2]
[387183295,1758617445760,-150.0,0.0002322,2]
[387183296,1758617445768,-150.0,0.0002322,2]
[387183297,1758617445776,-150.0,0.0002322,2]
[387183298,1758617445787,-150.5657836,0.0002322,2]
[387183299,1758617445794,-150.0,0.0002322,2]
[387183300,1758617445803,-150.0,0.00023245,4]
[387183301,1758617445814,-10287.8801083,0.00023252,2]
[387183302,1758617445822,-500.0,0.00023273,2]
[387183303,1758617445831,-500.0,0.00023273,2]
[387183304,1758617445840,-500.0,0.00023273,2]
[387183305,1758617445849,-500.0,0.00023273,2]
[387183306,1758617445861,-500.0,0.00023273,2]
[387183307,1758617445870,-500.0,0.00023273,2]